Workbook

Sheet Лист1
A2: "СОГЛАСОВАНО" | C2: "УТВЕРЖДЕНО"
A3: _______________ | C3: _______________
A4: "____"___________2022г. | C4: "____"___________2022г.
B6: ООО "АБК - Пэймент"
B7: Примерное меню для пришкольных лагерей дневного пребывания
B8: для учащихся с 12 лет и старше
B10: 1 день
B11: Наименование блюд | C11: Выход | D11: Белки | E11: Жиры | F11: Угл-ды | G11: Ккал
B12: Завтрак
A13: стр 186 табл. 9 /2012 Москва Дели Плюс | B13: Фрукты (бананы, яблоки, апельсины, мандарины) | C13: 100 | D13: 0.40 | E13: 0.40 | F13: 9.80 | G13: 47.00
A14: № 15/ СБ Москва Дели Плюс 2017 | B14: Сыр (порциями) | C14: 15 | D14: 3.95 | E14: 3.99 | G14: 51.50
A15: №173 /СБ Москва Дели Плюс 2017 | B15: Каша пшённая молочная с маслом сливочным | C15: 200/5 | D15: 10.21 | E15: 12.98 | F15: 29.07 | G15: 260.90
A16: № 378/ СБ Москва Дели Плюс 2017 | B16: Чай с молоком и сахаром | C16: 150/35/15 | D16: 1.55 | E16: 1.35 | F16: 15.90 | G16: 81.00
B17: Батончик злаковый | C17: 25 | D17: 1.60 | E17: 2.00 | F17: 16.50 | G17: 90.00
A18: стр 134 табл.6 /2012 Москва Дели Плюс | B18: Батон высший сорт | C18: 50 | D18: 3.75 | E18: 1.45 | F18: 25.66 | G18: 131.00
B19: Итого: | C19: 595 | D19: =SUM(D13:D18) -> 21.46 | E19: =SUM(E13:E18) -> 22.17 | F19: 96.93 | G19: 661.40
B21: Обед
A22: №71 /СБ Москва Дели Плюс 2017 | B22: Помидоры свежие порционно | C22: 100 | D22: 1.10 | E22: 0.20 | F22: 3.80 | G22: 22.00
A23: №88/СБ Москва Дели Плюс 2017, №105 /СБ Москва Дели Плюс 2017 | B23: Щи из свежей капусты с картофелем, мясными фрикадельками,со сметаной | C23: 250/11/10 | D23: 4.16 | E23: 7.71 | F23: 8.34 | G23: 126.95
A24: № 259 /СБ Москва Дели Плюс 2017 | B24: Жаркое по - домашнему (50/200) | C24: 250 | D24: 18.39 | E24: 24.70 | F24: 56.91 | G24: 515.83
A26: № 389 /СБ Москва Дели Плюс 2017 | B26: Нектар плодовый (разливной) | C26: 200 | D26: 1.00 | E26: 0.20 | F26: 20.20 | G26: 86.60
A27: стр 144 табл.6 /2012 Москва Дели Плюс | B27: Хлеб ржаной | C27: 50 | D27: 3.30 | E27: 0.60 | F27: 19.80 | G27: 99.00
A28: стр 134 табл.6 /2012 Москва Дели Плюс | B28: Хлеб пшеничный | C28: 50 | D28: 3.80 | E28: 0.40 | F28: 24.60 | G28: 117.50
B29: Итого: | C29: 921 | D29: =SUM(D22:D28) -> 31.75 | E29: =SUM(E22:E28) -> 33.81 | F29: =SUM(F22:F28) -> 133.65 | G29: =SUM(G22:G28) -> 967.88
B31: ВСЕГО: | C31: =C19+C29 -> 1516 | D31: =D19+D29 -> 53.21277718 | E31: 55.97540801 | F31: 230.5822815 | G31: 1629.283548
B34: 2 день
B35: Наименование блюд | C35: Выход | D35: Белки | E35: Жиры | F35: Угл-ды | G35: Ккал
B36: Завтрак
A37: № 14 /СБ Москва Дели Плюс 2017 | B37: Масло сливочное (порциями) | C37: 10 | D37: 0.08 | E37: 7.25 | F37: 0.13 | G37: 66.00
A38: №173 /СБ Москва Дели Плюс 2017 | B38: Каша геркулесовая молочная | C38: 250 | D38: 10.33 | E38: 5.48 | F38: 34.38 | G38: 238.84
A39: № 382 /СБ Москва Дели Плюс 2017 | B39: Какао с молоком | C39: 200 | D39: 4.08 | E39: 3.54 | F39: 17.58 | G39: 118.60
A40: №424/СБ Москва Дели Плюс 2017 | B40: Печенье | C40: 50 | D40: 3.64 | E40: 6.26 | F40: 21.96 | G40: 159.00
A41: стр 134 табл.6 /2012 Москва Дели Плюс | B41: Батон высший сорт | C41: 50 | D41: 3.75 | E41: 1.45 | F41: 25.66 | G41: 131.00
B42: Итого: | C42: 560 | D42: =SUM(D37:D41) -> 21.88 | E42: =SUM(E37:E41) -> 23.98 | F42: =SUM(F37:F41) -> 99.71 | G42: =SUM(G37:G41) -> 713.44
B44: Обед
A45: №20/СБ Москва Дели Плюс 2017 | B45: Огурцы свежие с маслом растительным | C45: 100 | D45: 0.70 | E45: 5.00 | F45: 1.90 | G45: 56.00
A46: 101/СБ Москва Дели Плюс 2017 | B46: Суп картофельный с крупой на курином бульоне из отварного мяса птицы | C46: 250 | D46: 1.97 | E46: 4.71 | F46: 12.11 | G46: 98.75
A48: ТТК №187 от 2018 | B48: Гуляш из отварных куриных грудок | C48: 50/50 | D48: 13.90 | E48: 19.50 | F48: 5.80 | G48: 197.80
A49: №202/СБ Москва Дели Плюс 2017 | B49: Макаронные изделия отварные | C49: 180 | D49: 6.79 | E49: 0.80 | F49: 38.30 | G49: 197.56
A50: ттк | B50: Компот из замороженной смородины | C50: 200 | D50: 0.60 | E50: 0.20 | F50: 27.80 | G50: 116.00
A51: стр 144 табл.6 /2012 Москва Дели Плюс | B51: Хлеб ржаной | C51: 50 | D51: 3.30 | E51: 0.60 | F51: 19.80 | G51: 99.00
A52: стр 134 табл.6 /2012 Москва Дели Плюс | B52: Хлеб пшеничный | C52: 50 | D52: 3.80 | E52: 0.40 | F52: 24.60 | G52: 147.50
B53: Итого: | C53: 930 | D53: =SUM(D45:D52) -> 31.06 | E53: =SUM(E45:E52) -> 31.21 | F53: 130.31 | G53: 912.61
B55: ВСЕГО: | C55: =C42+C53 -> 1490 | D55: =D42+D53 -> 52.94 | E55: 55.19 | F55: 230.02 | G55: 1626.05
B58: 3 день
B59: Наименование блюд | C59: Выход | D59: Белки | E59: Жиры | F59: Угл-ды | G59: Ккал
B60: Завтрак
A61: № 15/ СБ Москва Дели Плюс 2017 | B61: Сыр (порциями) | C61: 15 | D61: 3.95 | E61: 3.99 | G61: 51.50
A62: №173 /СБ Москва Дели Плюс 2017 | B62: Каша пшеничная молочная с маслом сливочным | C62: 200/5 | D62: 8.56 | E62: 7.43 | F62: 44.25 | G62: 263.00
A63: №210 /СБ Москва Дели Плюс 2017 | B63: Омлет натуральный | C63: 100 | D63: 7.29 | E63: 9.55 | F63: 12.76 | G63: 206.66
A64: №376 /СБ Москва Дели Плюс 2017 | B64: Чай с сахаром | C64: 185/15 | D64: 0.07 | E64: 0.02 | F64: 15.00 | G64: 60.00
A65: стр 134 табл.6 /2012 Москва Дели Плюс | B65: Батон высший сорт | C65: 50 | D65: 3.75 | E65: 1.45 | F65: 25.66 | G65: 131.00
B66: Итого: | C66: 570 | D66: =SUM(D61:D65) -> 23.62 | E66: =SUM(E61:E65) -> 22.44 | F66: 97.67 | G66: 712.16
B68: Обед
A69: №96,297 /СБ Москва Дели Плюс 2017 | B69: Рассольник ленинградский с фрикадельками из птицы,со сметаной | C69: 250/11/10 | D69: 3.60 | E69: 11.87 | F69: 13.24 | G69: 153.67
A70: ТТК №227 (Акт от 15.04.2017) | B70: Филе минтая запеченное с сыром | C70: 100/10 | D70: 13.30 | E70: 5.92 | F70: 0.79 | G70: 116.00
A71: №312/СБ Москва Дели Плюс 2017 | B71: Пюре картофельное с икрой кабачковой (доп.гарнир) | C71: 180/30 | D71: 3.78 | E71: 7.87 | F71: 28.70 | G71: 203.53
A72: №358,СБ 2017 Мосва | B72: Кисель | C72: 200 | D72: 0.57 | E72: 0.06 | F72: 30.20 | G72: 123.60
A73: стр 144 табл.6 /2012 Москва Дели Плюс | B73: Хлеб ржаной | C73: 50 | D73: 3.30 | E73: 0.60 | F73: 19.80 | G73: 99.00
A74: стр 134 табл.6 /2012 Москва Дели Плюс | B74: Хлеб пшеничный | C74: 50 | D74: 3.80 | E74: 0.40 | F74: 24.60 | G74: 117.50
B75: Итого: | C75: 891 | D75: =SUM(D69:D74) -> 28.35 | E75: =SUM(E69:E74) -> 26.72 | F75: 117.33 | G75: 813.31
B77: ВСЕГО: | C77: =C66+C75 -> 1461 | D77: =D66+D75 -> 51.97 | E77: 49.16 | F77: 215.00 | G77: 1525.47
B80: 4 день
B81: Наименование блюд | C81: Выход | D81: Белки | E81: Жиры | F81: Угл-ды | G81: Ккал
B82: Завтрак
A84: № 14 /СБ Москва Дели Плюс 2017 | B84: Масло сливочное (порциями) | C84: 10 | D84: 0.08 | E84: 7.25 | F84: 0.13 | G84: 66.00
A85: №175 / СБ Москва Дели Плюс 2017 | B85: Каша "Дружба" молочная | C85: 200 | D85: 6.01 | E85: 3.92 | F85: 28.54 | G85: 189.20
A86: №222 /СБ Москва Дели Плюс 2017 | B86: Пудинг из творога со сгущённым молоком | C86: 100/15 | D86: 10.61 | E86: 7.13 | F86: 30.22 | G86: 226.00
A87: №379 /СБ Москва Дели Плюс 2017 | B87: Кофейный напиток с молоком | C87: 200 | D87: 3.17 | E87: 2.68 | F87: 15.94 | G87: 100.60
A88: стр 134 табл.6 /2012 Москва Дели Плюс | B88: Батон высший сорт | C88: 50 | D88: 3.75 | E88: 1.45 | F88: 25.66 | G88: 131.00
B89: Итого: | C89: 575 | D89: =SUM(D83:D88) -> 23.62 | E89: =SUM(E83:E88) -> 22.43 | F89: =SUM(F83:F88) -> 100.49 | G89: =SUM(G83:G88) -> 712.80
B91: Обед
A92: №113 /СБ Москва Дели Плюс 2017 | B92: Суп - лапша домашняя на курином бульоне из отварного мяса птицы | C92: 250 | D92: 2.57 | E92: 5.54 | F92: 11.62 | G92: 115.75
A94: №292 /СБ Москва Дели Плюс 2017 | B94: Птица тушеная с овощами | C94: 50/50 | D94: 10.70 | E94: 10.06 | F94: 10.79 | G94: 183.95
A95: №171 /СБ Москва Дели Плюс 2017 | B95: Каша гречневая рассыпчатая с зеленым горошком к/с (доп.гарнир) | C95: 180/30 | D95: 8.40 | E95: 12.25 | F95: 42.50 | G95: 297.30
A96: № 389 /СБ Москва Дели Плюс 2017 | B96: Нектар плодовый (разливной) | C96: 200 | D96: 1.00 | E96: 0.20 | F96: 20.20 | G96: 86.60
A97: стр 144 табл.6 /2012 Москва Дели Плюс | B97: Хлеб ржаной | C97: 40 | D97: 2.64 | E97: 0.48 | F97: 15.84 | G97: 79.20
A98: стр 134 табл.6 /2012 Москва Дели Плюс | B98: Хлеб пшеничный | C98: 40 | D98: 3.04 | E98: 0.32 | F98: 19.68 | G98: 94.00
B99: Итого: | C99: 840 | D99: =SUM(D92:D98) -> 28.35 | E99: =SUM(E92:E98) -> 28.85 | F99: 120.63 | G99: 856.80
B101: ВСЕГО: | C101: =C89+C99 -> 1415 | D101: =D89+D99 -> 51.97 | E101: 51.2796997 | F101: 221.1206907 | G101: 1569.595946
B104: 5 день
B105: Наименование блюд | C105: Выход | D105: Белки | E105: Жиры | F105: Угл-ды | G105: Ккал
B106: Завтрак
A107: стр 186 табл. 9 /2012 Москва Дели Плюс | B107: Фрукты (бананы, яблоки, апельсины, мандарины) | C107: 100 | D107: 0.80 | E107: 0.20 | F107: 7.50 | G107: 38.00
A108: № 15/ СБ Москва Дели Плюс 2017 | B108: Сыр (порциями) | C108: 15 | D108: 3.95 | E108: 3.99 | G108: 51.50
A109: №182 / СБ Москва Дели Плюс 2016 | B109: Каша ячневая молочная с маслом сливочным | C109: 200/5 | D109: 7.07 | E109: 10.65 | F109: 30.13 | G109: 217.73
A110: № 378/ СБ Москва Дели Плюс 2017 | B110: Чай с молоком ,с сахаром | C110: 150/35/15 | D110: 1.55 | E110: 1.35 | F110: 15.90 | G110: 81.00
A111: стр 134 табл.6 /2012 Москва Дели Плюс | B111: Батон высший сорт | C111: 50 | D111: 3.75 | E111: 1.45 | F111: 25.66 | G111: 131.00
B112: Итого: | C112: 570 | D112: =SUM(D107:D111) -> 17.12 | E112: =SUM(E107:E111) -> 17.64 | F112: 79.19 | G112: 519.23
B114: Обед
A115: №52 /СБ Москва Дели Плюс 2017 | B115: Салат из отварной свеклы с маслом растительным | C115: 100 | D115: 1.41 | E115: 7.01 | F115: 8.26 | G115: 92.80
A116: №104 /СБ Москва Дели Плюс 2017, №105 /СБ Москва Дели Плюс 2017 | B116: Суп картофельный с мясными фрикадельками | C116: 250/11 | D116: 4.48 | E116: 10.50 | F116: 14.10 | G116: 135.00
A117: №234 /СБ Москва Дели Плюс 2017 | B117: Биточки рыбные из минтая | C117: 100 | D117: 12.20 | E117: 8.58 | F117: 12.68 | G117: 178.00
A118: №203/СБ Москва Дели Плюс 2017 | B118: Макаронные изделия отварные с маслом сливочным | C118: 180/5 | D118: 6.83 | E118: 4.43 | F118: 38.37 | G118: 220.56
A119: №113/СБ Москва Дели Плюс 2017 | B119: Компот из замороженных фруктов | C119: 200 | D119: 0.60 | E119: 0.20 | F119: 24.80 | G119: 116.00
A120: стр 144 табл.6 /2012 Москва Дели Плюс | B120: Хлеб ржаной | C120: 40 | D120: 2.64 | E120: 0.48 | F120: 15.84 | G120: 79.20
A121: стр 134 табл.6 /2012 Москва Дели Плюс | B121: Хлеб пшеничный | C121: 40 | D121: 3.04 | E121: 0.32 | F121: 19.68 | G121: 94.00
B122: Итого: | C122: 926 | D122: =SUM(D115:D121) -> 31.20 | E122: =SUM(E115:E121) -> 31.52 | F122: 133.73 | G122: 915.56
B124: ВСЕГО: | C124: =C112+C122 -> 1496 | D124: =D112+D122 -> 48.31861052 | E124: 49.16 | F124: 212.92 | G124: 1434.790214
B127: 6 день
B128: Наименование блюд | C128: Выход | D128: Белки | E128: Жиры | F128: Угл-ды | G128: Ккал
B129: Завтрак
A130: стр 186 табл. 9 /2012 Москва Дели Плюс | B130: Фрукты (бананы, яблоки, апельсины, мандарины) | C130: 100 | D130: 0.40 | E130: 0.40 | F130: 9.80 | G130: 47.00
A131: № 14 /СБ Москва Дели Плюс 2017 | B131: Масло сливочное (порциями) | C131: 10 | D131: 0.08 | E131: 7.25 | F131: 0.13 | G131: 66.00
A132: №401 /СБ Москва Дели Плюс 2017 | B132: Оладьи с повидлом | C132: 180/20 | D132: 13.90 | E132: 9.98 | F132: 52.14 | G132: 367.42
A133: № 382 /СБ Москва Дели Плюс 2017 | B133: Какао с молоком | C133: 200 | D133: 4.08 | E133: 3.54 | F133: 17.58 | G133: 118.60
A134: стр 134 табл.6 /2012 Москва Дели Плюс | B134: Батон высший сорт | C134: 40 | D134: 3.00 | E134: 1.16 | F134: 20.53 | G134: 104.80
B135: Итого: | C135: 550 | D135: =SUM(D130:D134) -> 21.46 | E135: =SUM(E130:E134) -> 22.33 | F135: 100.18 | G135: 703.82
B137: Обед
A138: №71 /СБ Москва Дели Плюс 2017 | B138: Помидоры свежие порционно | C138: 100 | D138: 1.10 | E138: 0.20 | F138: 3.80 | G138: 22.00
A139: №99 /СБ Москва Дели Плюс 2017 | B139: Суп из овощей на курином бульоне из отварного мяса птицы, со сметаной | C139: 250/10 | D139: 1.85 | E139: 6.49 | F139: 9.51 | G139: 111.45
A140: 321 СБ дошк 2016 | B140: Плов из отварных куриных грудок (50/200) | C140: 250 | D140: 22.24 | E140: 25.97 | F140: 54.32 | G140: 487.50
A141: №349 /СБ Москва Дели Плюс 2017 | B141: Компот из изюма | C141: 200 | D141: 0.55 | E141: 0.08 | F141: 25.77 | G141: 107.40
A142: стр 144 табл.6 /2012 Москва Дели Плюс | B142: Хлеб ржаной | C142: 50 | D142: 3.30 | E142: 0.60 | F142: 19.80 | G142: 99.00
A143: стр 134 табл.6 /2012 Москва Дели Плюс | B143: Хлеб пшеничный | C143: 50 | D143: 3.80 | E143: 0.40 | F143: 24.60 | G143: 117.50
B144: Итого: | C144: 910 | D144: =SUM(D138:D143) -> 32.84 | E144: =SUM(E138:E143) -> 33.74 | F144: 137.80 | G144: 944.85
B146: ВСЕГО: | C146: =C135+C144 -> 1460 | D146: =D135+D144 -> 54.3 | E146: 56.07 | F146: 237.98 | G146: 1648.67
B149: 7 день
B150: Наименование блюд | C150: Выход | D150: Белки | E150: Жиры | F150: Угл-ды | G150: Ккал
B151: Завтрак
A152: № 15/ СБ Москва Дели Плюс 2017 | B152: Сыр (порциями) | C152: 15 | D152: 3.95 | E152: 3.99 | G152: 51.50
A153: №173 / СБ Москва Дели Плюс 2017 | B153: Каша полбяная молочная с маслом сливочным | C153: 200/5 | D153: 8.60 | E153: 7.43 | F153: 44.25 | G153: 279.00
A154: №210 /СБ Москва Дели Плюс 2017 | B154: Омлет натуральный | C154: 100 | D154: 7.29 | E154: 9.55 | F154: 12.76 | G154: 206.66
A155: №376 /СБ Москва Дели Плюс 2017 | B155: Чай с сахаром | C155: 185/15 | D155: 0.07 | E155: 0.02 | F155: 15.00 | G155: 60.00
A156: стр 134 табл.6 /2012 Москва Дели Плюс | B156: Батон высший сорт | C156: 40 | D156: 3.00 | E156: 1.16 | F156: 20.53 | G156: 104.80
B157: Итого: | C157: 560 | D157: =SUM(D152:D156) -> 22.91 | E157: =SUM(E152:E156) -> 22.15 | F157: =SUM(F152:F156) -> 92.54 | G157: =SUM(G152:G156) -> 701.96
B160: Обед
A161: №20/СБ Москва Дели Плюс 2017 | B161: Огурцы свежие с маслом растительным | C161: 100 | D161: 0.80 | E161: 5.00 | F161: 1.90 | G161: 56.00
A162: №119,297 /СБ Москва Дели Плюс 2017, №237 /СБ Москва Дели Плюс 2017 | B162: Суп гороховый с фрикадельками из птицы и гренками | C162: 250/11/10 | D162: 6.89 | E162: 17.62 | F162: 14.08 | G162: 171.78
A163: ТТК 65Д | B163: Котлеты "Аппетитные" | C163: 100 | D163: 11.82 | E163: 4.38 | F163: 16.39 | G163: 185.42
A164: №180/СБ Москва Дели Плюс 2016 | B164: Перловая каша рассыпчатая с овощами с маслом сливочным | C164: 180/5 | D164: 5.28 | E164: 3.90 | F164: 14.85 | G164: 173.43
A165: 349/СБ Москва Дели Плюс 2017 | B165: Компот из замороженной смородины | C165: 200 | D165: 0.66 | E165: 0.09 | F165: 32.01 | G165: 132.80
B166: Батончик злаковый | C166: 25 | D166: 1.60 | E166: 2.00 | F166: 16.50 | G166: 90.00
A167: стр 144 табл.6 /2012 Москва Дели Плюс | B167: Хлеб ржаной | C167: 40 | D167: 2.64 | E167: 0.48 | F167: 15.84 | G167: 79.20
A168: стр 134 табл.6 /2012 Москва Дели Плюс | B168: Хлеб пшеничный | C168: 40 | D168: 3.04 | E168: 0.32 | F168: 19.68 | G168: 94.00
B169: Итого: | C169: 961 | D169: =SUM(D161:D168) -> 32.73 | E169: =SUM(E161:E168) -> 33.79 | F169: 131.25 | G169: 982.63
B171: ВСЕГО: | C171: =C157+C169 -> 1521 | D171: =D157+D169 -> 55.64210526 | E171: 55.94067669 | F171: 223.79 | G171: 1684.59
B174: 8 день
B175: Наименование блюд | C175: Выход | D175: Белки | E175: Жиры | F175: Угл-ды | G175: Ккал
B176: Завтрак
A177: стр 186 табл. 9 /2012 Москва Дели Плюс | B177: Фрукты (бананы, яблоки, апельсины, мандарины) | C177: 120 | D177: 1.08 | E177: 0.24 | F177: 9.72 | G177: 51.60
A178: № 14 /СБ Москва Дели Плюс 2017 | B178: Масло сливочное (порциями) | C178: 10 | D178: 0.08 | E178: 7.25 | F178: 0.13 | G178: 66.00
A179: №223 /СБ Москва Дели Плюс 2017 | B179: Запеканка из творога со сгущённым молоком | C179: 175/25 | D179: 17.04 | E179: 12.73 | F179: 49.76 | G179: 391.25
A180: №379 /СБ Москва Дели Плюс 2017 | B180: Кофейный напиток с молоком | C180: 200 | D180: 3.17 | E180: 2.68 | F180: 15.95 | G180: 100.60
A181: стр 134 табл.6 /2012 Москва Дели Плюс | B181: Батон высший сорт | C181: 30 | D181: 2.25 | E181: 0.87 | F181: 15.42 | G181: 78.60
B182: Итого: | C182: 560 | D182: =SUM(D177:D181) -> 23.62 | E182: =SUM(E177:E181) -> 23.77 | F182: 90.98 | G182: 688.05
B185: Обед
A186: №12 /СБ Москва Дели Плюс 2016 | B186: Салат из кукурузы к/с | C186: 100 | D186: 2.88 | E186: 6.18 | F186: 8.04 | G186: 99.30
A187: №98 /СБ Москва Дели Плюс 2017 | B187: Суп крестьянский с пшенной крупой на мясном бульоне из отварного мяса говядины | C187: 250 | D187: 2.18 | E187: 2.84 | F187: 14.29 | G187: 91.50
A188: №143 /СБ Москва Дели Плюс 2017, №241 /СБ Москва Дели Плюс 2017 | B188: Рагу овощное с отварным мясом (50/200) | C188: 250 | D188: 17.35 | E188: 18.59 | F188: 24.13 | G188: 346.67
A189: №342/СБ Москва Дели Плюс 2017 | B189: Компот из яблок | C189: 200 | D189: 0.16 | E189: 0.16 | F189: 27.88 | G189: 114.60
A190: стр 144 табл.6 /2012 Москва Дели Плюс | B190: Хлеб ржаной | C190: 40 | D190: 2.64 | E190: 0.48 | F190: 15.84 | G190: 79.20
A191: стр 134 табл.6 /2012 Москва Дели Плюс | B191: Хлеб пшеничный | C191: 40 | D191: 3.04 | E191: 0.32 | F191: 19.68 | G191: 94.00
B192: Итого: | C192: 900 | D192: =SUM(D186:D191) -> 28.25 | E192: =SUM(E186:E191) -> 28.57 | F192: 109.86 | G192: 825.27
B194: ВСЕГО: | C194: =C182+C192 -> 1460 | D194: =D182+D192 -> 51.873 | E194: 52.34 | F194: 200.841 | G194: 1513.316667
B197: 9 день
B198: Наименование блюд | C198: Выход | D198: Белки | E198: Жиры | F198: Угл-ды | G198: Ккал
B199: Завтрак
A200: стр 186 табл. 9 /2012 Москва Дели Плюс | B200: Фрукты (бананы, яблоки, апельсины, мандарины) | C200: 100 | D200: 0.40 | E200: 0.40 | F200: 9.80 | G200: 47.00
A201: № 15/ СБ Москва Дели Плюс 2017 | B201: Сыр (порциями) | C201: 15 | D201: 3.95 | E201: 3.99 | G201: 51.50
A202: №174 / СБ Москва Дели Плюс 2017 | B202: Каша рисовая молочная с маслом сливочным | C202: 200/5 | D202: 8.26 | E202: 9.44 | F202: 14.58 | G202: 172.56
A203: № 378/ СБ Москва Дели Плюс 2017 | B203: Чай с молоком и сахаром | C203: 150/35/15 | D203: 1.55 | E203: 1.35 | F203: 15.90 | G203: 81.00
B204: Батончик злаковый | C204: 25 | D204: 1.60 | E204: 2.00 | F204: 16.50 | G204: 90.00
A205: стр 134 табл.6 /2012 Москва Дели Плюс | B205: Батон высший сорт | C205: 40 | D205: 3.00 | E205: 1.16 | F205: 20.53 | G205: 104.80
B206: Итого: | C206: 585 | D206: =SUM(D200:D205) -> 18.76 | E206: =SUM(E200:E205) -> 18.34 | F206: 77.31 | G206: 546.86
B208: Обед
A209: №71 /СБ Москва Дели Плюс 2017 | B209: Помидоры свежие порционно | C209: 100 | D209: 1.10 | E209: 0.20 | F209: 3.80 | G209: 22.00
A210: №84 /СБ Москва Дели Плюс 2017, №297 /СБ Москва Дели Плюс 2017 | B210: Борщ сибирский с фрикадельками из птицы,со сметаной | C210: 250/11/10 | D210: 5.04 | E210: 13.18 | F210: 13.27 | G210: 174.17
A211: №240,328 /СБ Москва Дели Плюс 2017 | B211: Фрикадельки рыбные в соусе молочном | C211: 55/50 | D211: 7.53 | E211: 11.14 | F211: 9.47 | G211: 150.60
A212: №202/СБ Москва Дели Плюс 2017 | B212: Макаронные изделия отварные | C212: 180 | D212: 6.79 | E212: 0.80 | F212: 38.30 | G212: 187.56
A213: № 389 /СБ Москва Дели Плюс 2017 | B213: Нектар плодовый (разливной) | C213: 200 | D213: 1.00 | E213: 0.20 | F213: 20.20 | G213: 86.60
A214: стр 144 табл.6 /2012 Москва Дели Плюс | B214: Хлеб ржаной | C214: 40 | D214: 2.64 | E214: 0.48 | F214: 15.84 | G214: 79.20
A215: стр 134 табл.6 /2012 Москва Дели Плюс | B215: Хлеб пшеничный | C215: 40 | D215: 3.04 | E215: 0.32 | F215: 19.68 | G215: 94.00
B216: Итого: | C216: 936 | D216: =SUM(D209:D215) -> 27.14 | E216: =SUM(E209:E215) -> 26.32 | F216: 120.56 | G216: 794.13
B218: ВСЕГО: | C218: =C206+C216 -> 1521 | D218: =D206+D216 -> 45.8985 | E218: 44.66 | F218: 197.868 | G218: 1340.992222
B221: 10 день
B222: Наименование блюд | C222: Выход | D222: Белки | E222: Жиры | F222: Угл-ды | G222: Ккал
B223: Завтрак
A224: №71/СБ Москва Дели Плюс 2016 | B224: Огурцы свежие порционно | C224: 100 | D224: 0.70 | E224: 0.10 | F224: 1.90 | G224: 12.00
A225: №173 /СБ Москва Дели Плюс 2017 | B225: Каша пшеничная молочная с маслом сливочным | C225: 200/5 | D225: 8.60 | E225: 12.39 | F225: 34.26 | G225: 279.00
A226: № 382 /СБ Москва Дели Плюс 2017 | B226: Какао с молоком | C226: 200 | D226: 4.08 | E226: 3.54 | F226: 17.58 | G226: 118.60
A227: стр 134 табл.6 /2012 Москва Дели Плюс | B227: Батон высший сорт | C227: 50 | D227: 3.75 | E227: 1.45 | F227: 25.66 | G227: 131.00
B228: Итого: | C228: 555 | D228: =SUM(D224:D227) -> 17.13 | E228: =SUM(E224:E227) -> 17.48 | F228: 79.40 | G228: 540.60
B230: Обед
A232: №96 /СБ Москва Дели Плюс 2017 | B232: Рассольник ленинградский со сметаной | C232: 250/10 | D232: 2.28 | E232: 6.59 | F232: 12.60 | G232: 123.45
A233: №284/СБ Москва Дели Плюс 2017 | B233: Запеканка картофельная с мясом с зеленым горошком к/с (доп.гарнир) (50/150/50) | C233: 200/50 | D233: 19.85 | E233: 21.79 | F233: 46.75 | G233: 447.76
A234: №358,СБ 2017 Мосва | B234: Кисель | C234: 200 | D234: 0.57 | E234: 0.06 | F234: 30.20 | G234: 123.60
A235: стр 144 табл.6 /2012 Москва Дели Плюс | B235: Хлеб ржаной | C235: 50 | D235: 3.30 | E235: 0.60 | F235: 19.80 | G235: 99.00
A236: стр 134 табл.6 /2012 Москва Дели Плюс | B236: Хлеб пшеничный | C236: 50 | D236: 3.80 | E236: 0.40 | F236: 24.60 | G236: 117.50
B237: Итого: | C237: 810 | D237: =SUM(D232:D236) -> 29.80 | E237: =SUM(E232:E236) -> 29.44 | F237: 133.95 | G237: 911.31
B239: ВСЕГО: | C239: =C228+C237 -> 1365 | D239: =D228+D237 -> 46.93 | E239: 46.92 | F239: 213.35 | G239: 1451.91
B242: 11 день
B243: Наименование блюд | C243: Выход | D243: Белки | E243: Жиры | F243: Угл-ды | G243: Ккал
B244: Завтрак
A245: № 14 /СБ Москва Дели Плюс 2017 | B245: Масло сливочное (порциями) | C245: 10 | D245: 0.08 | E245: 7.25 | F245: 0.13 | G245: 66.00
A246: №182 / СБ Москва Дели Плюс 2016 | B246: Каша ячневая молочная с маслом сливочным | C246: 150/4 | D246: 3.29 | E246: 3.34 | F246: 21.23 | G246: 128.40
A247: №212 /СБ Москва Дели Плюс 2017 | B247: Омлет натуральный с сосисками | C247: 150 | D247: 17.19 | E247: 12.38 | F247: 37.31 | G247: 315.18
A248: №376 /СБ Москва Дели Плюс 2017 | B248: Чай с сахаром | C248: 185/15 | D248: 0.07 | E248: 0.02 | F248: 15.00 | G248: 60.00
A249: стр 134 табл.6 /2012 Москва Дели Плюс | B249: Батон высший сорт | C249: 40 | D249: 3.00 | E249: 1.16 | F249: 20.53 | G249: 104.80
B250: Итого: | C250: 554 | D250: =SUM(D245:D249) -> 23.63 | E250: =SUM(E245:E249) -> 24.15 | F250: =SUM(F245:F249) -> 94.20 | G250: =SUM(G245:G249) -> 674.38
... 204 more rows
